[Event "Live Chess"]
[Site "Chess.com"]
[Date "2023.05.20"]
[Round "-"]
[White "GEMdzq"]
[Black "JoeRoot66"]
[Result "1-0"]
[WhiteElo "2243"]
[BlackElo "1904"]
[TimeControl "300"]
[EndTime "14:34:58 PDT"]
[Termination "GEMdzq won on time"]

1. e4 {[%clk 0:04:58.9]} 1... c6 {[%clk 0:04:59]} 2. d4 {[%clk 0:04:57.9]} 2...
d5 {[%clk 0:04:58.9]} 3. e5 {[%clk 0:04:57.5]} 3... Bf5 {[%clk 0:04:57.2]} 4. h4
{[%clk 0:04:56.1]} 4... h5 {[%clk 0:04:55.5]} 5. c4 {[%clk 0:04:55.3]} 5... e6
{[%clk 0:04:54.3]} 6. Nc3 {[%clk 0:04:54.3]} 6... Ne7 {[%clk 0:04:50.1]} 7. Bg5
{[%clk 0:04:51.9]} 7... Qb6 {[%clk 0:04:48.4]} 8. Qd2 {[%clk 0:04:50.6]} 8...
dxc4 {[%clk 0:04:43.3]} 9. Bxe7 {[%clk 0:04:38.9]} 9... Bxe7 {[%clk 0:04:40.7]}
10. Bxc4 {[%clk 0:04:38.6]} 10... Nd7 {[%clk 0:04:37.8]} 11. Nf3 {[%clk
0:04:36.8]} 11... Rd8 {[%clk 0:04:31.6]} 12. O-O {[%clk 0:04:29]} 12... Qa5
{[%clk 0:04:19.9]} 13. Bd3 {[%clk 0:04:24.5]} 13... Bxd3 {[%clk 0:04:16.4]} 14.
Qxd3 {[%clk 0:04:23.7]} 14... Nxe5 {[%clk 0:04:15.6]} 15. Qe4 {[%clk 0:03:59.1]}
15... Nxf3+ {[%clk 0:04:12.4]} 16. Qxf3 {[%clk 0:03:59]} 16... Rxd4 {[%clk
0:04:05.2]} 17. g3 {[%clk 0:03:58.2]} 17... Rg4 {[%clk 0:03:55.1]} 18. Kh2
{[%clk 0:03:48.8]} 18... Qc7 {[%clk 0:03:49.2]} 19. Kh1 {[%clk 0:03:32.6]} 19...
Bxh4 {[%clk 0:03:40]} 20. Ne4 {[%clk 0:03:31.4]} 20... f5 {[%clk 0:03:30.1]} 21.
Nc5 {[%clk 0:03:24]} 21... Kf7 {[%clk 0:03:26.4]} 22. Rae1 {[%clk 0:03:18.8]}
22... Re8 {[%clk 0:03:23.8]} 23. Nxe6 {[%clk 0:03:13.3]} 23... Rxe6 {[%clk
0:03:10.7]} 24. Qxf5+ {[%clk 0:03:12.2]} 24... Rf6 {[%clk 0:03:07.6]} 25. Qxh5+
{[%clk 0:03:11.5]} 25... Rgg6 {[%clk 0:03:02.1]} 26. gxh4 {[%clk 0:03:00.6]}
26... Qf4 {[%clk 0:02:55.4]} 27. Re3 {[%clk 0:02:49.8]} 27... Qxe3 {[%clk
0:02:47.6]} 28. Qxg6+ {[%clk 0:02:46.5]} 28... Kxg6 {[%clk 0:02:37.1]} 29. Rg1+
{[%clk 0:02:45.7]} 29... Kh6 {[%clk 0:02:26.5]} 30. fxe3 {[%clk 0:02:44.7]}
30... Rf2 {[%clk 0:02:24.3]} 31. Rg2 {[%clk 0:02:43.4]} 31... Rf3 {[%clk
0:02:15]} 32. Re2 {[%clk 0:02:40]} 32... Rh3+ {[%clk 0:02:08.7]} 33. Kg2 {[%clk
0:02:39]} 33... Rxh4 {[%clk 0:02:07.4]} 34. e4 {[%clk 0:02:38.4]} 34... Kg5
{[%clk 0:02:05.4]} 35. e5 {[%clk 0:02:31.2]} 35... Rh8 {[%clk 0:01:59]} 36. Kf3
{[%clk 0:02:29.9]} 36... Kf5 {[%clk 0:01:55.5]} 37. Rg2 {[%clk 0:02:23.9]} 37...
Rh3+ {[%clk 0:01:52.2]} 38. Ke2 {[%clk 0:02:22.8]} 38... Rh7 {[%clk 0:01:41.4]}
39. Kd3 {[%clk 0:02:15.8]} 39... Kxe5 {[%clk 0:01:38]} 40. a4 {[%clk 0:02:14.8]}
40... Kd5 {[%clk 0:01:20.7]} 41. Rg5+ {[%clk 0:02:12.1]} 41... Kd6 {[%clk
0:01:20.2]} 42. a5 {[%clk 0:02:11]} 42... Rh3+ {[%clk 0:01:13.9]} 43. Kd4 {[%clk
0:02:06]} 43... Rb3 {[%clk 0:01:07.3]} 44. Rg6+ {[%clk 0:02:03.2]} 44... Ke7
{[%clk 0:00:56.7]} 45. Rxg7+ {[%clk 0:02:02.5]} 45... Kf6 {[%clk 0:00:56.3]} 46.
Rc7 {[%clk 0:01:55.5]} 46... Rxb2 {[%clk 0:00:52.8]} 47. a6 {[%clk 0:01:55]}
47... Ke6 {[%clk 0:00:31.4]} 48. Rxb7 {[%clk 0:01:50.2]} 48... Ra2 {[%clk
0:00:26.7]} 49. Rxa7 {[%clk 0:01:49.3]} 49... Kd6 {[%clk 0:00:25.9]} 50. Ra8
{[%clk 0:01:47.4]} 50... c5+ {[%clk 0:00:23.2]} 51. Kc4 {[%clk 0:01:46.7]} 51...
Kc6 {[%clk 0:00:21.2]} 52. Kb3 {[%clk 0:01:38.2]} 52... Ra1 {[%clk 0:00:17.9]}
53. Kb2 {[%clk 0:01:34.5]} 53... Ra5 {[%clk 0:00:16.9]} 54. Kc3 {[%clk
0:01:25.9]} 54... Kb6 {[%clk 0:00:14.6]} 55. Kc4 {[%clk 0:01:24.7]} 55... Ra4+
{[%clk 0:00:12.1]} 56. Kd5 {[%clk 0:01:22.5]} 56... Rd4+ {[%clk 0:00:11.3]} 57.
Ke5 {[%clk 0:01:20.7]} 57... Ra4 {[%clk 0:00:09.7]} 58. Kd6 {[%clk 0:01:18.3]}
58... c4 {[%clk 0:00:08.5]} 59. Kd5 {[%clk 0:01:11.6]} 59... c3 {[%clk
0:00:07.7]} 60. Rc8 {[%clk 0:01:10.7]} 60... Ra3 {[%clk 0:00:04.8]} 61. a7
{[%clk 0:01:06.4]} 61... Kxa7 {[%clk 0:00:03.9]} 62. Kd4 {[%clk 0:01:04.4]}
62... Ka6 {[%clk 0:00:01.2]} 63. Kd3 {[%clk 0:01:03.5]} 63... Ka5 {[%clk
0:00:00.5]} 64. Kc2 {[%clk 0:01:02.7]} 64... Ka4 {[%clk 0:00:00.4]} 65. Ra8+
{[%clk 0:01:01.1]} 65... Kb4 {[%clk 0:00:00.1]} 66. Rb8+ {[%clk 0:01:00.6]} 1-0

[Event "Live Chess"]
[Site "Chess.com"]
[Date "2023.05.20"]
[Round "-"]
[White "rideuv21"]
[Black "jimwad"]
[Result "1-0"]
[WhiteElo "1803"]
[BlackElo "1225"]
[TimeControl "300"]
[EndTime "14:34:58 PDT"]
[Termination "rideuv21 won by resignation"]

1. e4 {[%clk 0:04:58.8]} 1... e5 {[%clk 0:04:56.8]} 2. d4 {[%clk 0:04:57.3]}
2... exd4 {[%clk 0:04:52.3]} 3. Nf3 {[%clk 0:04:55]} 3... Nc6 {[%clk 0:04:50.8]}
4. Bc4 {[%clk 0:04:52]} 4... Bb4+ {[%clk 0:04:44.2]} 5. c3 {[%clk 0:04:50.4]}
5... Bc5 {[%clk 0:04:42.7]} 6. cxd4 {[%clk 0:04:48.5]} 6... Bb4+ {[%clk
0:04:39.4]} 7. Nc3 {[%clk 0:04:47.6]} 7... d6 {[%clk 0:04:33.3]} 8. O-O {[%clk
0:04:45.2]} 8... Nge7 {[%clk 0:04:30.3]} 9. Ng5 {[%clk 0:04:36.4]} 9... O-O
{[%clk 0:04:27]} 10. Qh5 {[%clk 0:04:34.3]} 10... h6 {[%clk 0:04:20]} 11. Nxf7
{[%clk 0:04:30.1]} 11... Rxf7 {[%clk 0:04:14.1]} 12. Qxf7+ {[%clk 0:04:30]}
12... Kh8 {[%clk 0:04:12.9]} 13. Bxh6 {[%clk 0:04:22.1]} 13... gxh6 {[%clk
0:04:04.9]} 14. Rad1 {[%clk 0:04:14.7]} 14... Bg4 {[%clk 0:03:26.8]} 15. Qf6+
{[%clk 0:04:10.2]} 15... Kh7 {[%clk 0:03:22.3]} 16. Rd3 {[%clk 0:04:09.3]} 16...
Ng6 {[%clk 0:03:13.7]} 17. Qf7+ {[%clk 0:04:03.9]} 17... Kh8 {[%clk 0:02:58.7]}
18. Qxg6 {[%clk 0:04:03.8]} 1-0

[Event "Live Chess"]
[Site "Chess.com"]
[Date "2023.05.20"]
[Round "-"]
[White "Delacorta"]
[Black "wot-not"]
[Result "1-0"]
[WhiteElo "1415"]
[BlackElo "1511"]
[TimeControl "300"]
[EndTime "14:35:07 PDT"]
[Termination "Delacorta won by checkmate"]

1. d4 {[%clk 0:04:57.8]} 1... Nf6 {[%clk 0:04:56.8]} 2. Nf3 {[%clk 0:04:55.5]}
2... d6 {[%clk 0:04:55.3]} 3. e3 {[%clk 0:04:54.7]} 3... Bg4 {[%clk 0:04:54.9]}
4. Be2 {[%clk 0:04:53.8]} 4... Nbd7 {[%clk 0:04:54.5]} 5. h3 {[%clk 0:04:52.9]}
5... Bh5 {[%clk 0:04:53.4]} 6. Nc3 {[%clk 0:04:51.7]} 6... c5 {[%clk 0:04:50.6]}
7. d5 {[%clk 0:04:49.7]} 7... e5 {[%clk 0:04:48.4]} 8. e4 {[%clk 0:04:48.7]}
8... Be7 {[%clk 0:04:45.8]} 9. Bd2 {[%clk 0:04:47.7]} 9... Nf8 {[%clk
0:04:44.5]} 10. O-O {[%clk 0:04:46.8]} 10... Bxf3 {[%clk 0:04:43.9]} 11. Bxf3
{[%clk 0:04:45.8]} 11... Ng6 {[%clk 0:04:43.7]} 12. Qe2 {[%clk 0:04:39.6]} 12...
O-O {[%clk 0:04:42.8]} 13. Nb5 {[%clk 0:04:37.6]} 13... a6 {[%clk 0:04:40.7]}
14. Na3 {[%clk 0:04:33.6]} 14... h6 {[%clk 0:04:40.4]} 15. Nc4 {[%clk
0:04:32.8]} 15... Nh7 {[%clk 0:04:37.7]} 16. Ba5 {[%clk 0:04:31.5]} 16... Qe8
{[%clk 0:04:32.6]} 17. Nb6 {[%clk 0:04:30.2]} 17... Rb8 {[%clk 0:04:25.6]} 18.
Bg4 {[%clk 0:04:24]} 18... Nf4 {[%clk 0:04:19.5]} 19. Qd2 {[%clk 0:04:19.4]}
19... Bg5 {[%clk 0:04:11.7]} 20. Qe1 {[%clk 0:04:00.6]} 20... Nf6 {[%clk
0:04:03.3]} 21. Bf3 {[%clk 0:03:26.7]} 21... Qb5 {[%clk 0:03:53.9]} 22. g3
{[%clk 0:02:54.7]} 22... Nxh3+ {[%clk 0:03:29.5]} 23. Kg2 {[%clk 0:02:53.6]}
23... Nh7 {[%clk 0:03:12.6]} 24. Kxh3 {[%clk 0:02:50.8]} 24... f5 {[%clk
0:03:11.8]} 25. exf5 {[%clk 0:02:42.2]} 25... Rxf5 {[%clk 0:03:09.8]} 26. Bg4
{[%clk 0:02:39]} 26... Rf7 {[%clk 0:03:00.4]} 27. Be6 {[%clk 0:02:37.6]} 27...
Rf8 {[%clk 0:02:45.5]} 28. Nd7 {[%clk 0:02:23.9]} 28... Kh8 {[%clk 0:02:38.8]}
29. Nxf8 {[%clk 0:02:19]} 29... Rxf8 {[%clk 0:02:36.8]} 30. b3 {[%clk
0:02:01.2]} 30... Bf6 {[%clk 0:02:26.7]} 31. Kg2 {[%clk 0:01:58.3]} 31... e4
{[%clk 0:02:22.9]} 32. Bc3 {[%clk 0:01:51.6]} 32... Ng5 {[%clk 0:02:14.1]} 33.
Bxf6 {[%clk 0:01:44.3]} 33... Rxf6 {[%clk 0:02:12.9]} 34. Qe3 {[%clk 0:01:40.6]}
34... Qe8 {[%clk 0:02:00.1]} 35. Rae1 {[%clk 0:01:37.1]} 35... Qh5 {[%clk
0:01:58.1]} 36. Rh1 {[%clk 0:01:29.7]} 36... Qg6 {[%clk 0:01:54.3]} 37. Ref1
{[%clk 0:01:19.6]} 37... Nf3 {[%clk 0:01:51.9]} 38. Rh3 {[%clk 0:01:09.4]} 38...
Ng5 {[%clk 0:01:40.8]} 39. Rhh1 {[%clk 0:01:01.1]} 39... Rf3 {[%clk 0:01:35.8]}
40. Qe2 {[%clk 0:00:54.9]} 40... Qf6 {[%clk 0:01:28.9]} 41. Bg4 {[%clk
0:00:51.9]} 41... Rc3 {[%clk 0:01:25.6]} 42. Qd2 {[%clk 0:00:49.6]} 42... Nf3
{[%clk 0:01:21.1]} 43. Bxf3 {[%clk 0:00:48]} 43... exf3+ {[%clk 0:01:20.5]} 44.
Kg1 {[%clk 0:00:40.5]} 44... c4 {[%clk 0:01:13.7]} 45. Rh4 {[%clk 0:00:39.2]}
45... cxb3 {[%clk 0:01:09.6]} 46. axb3 {[%clk 0:00:37.4]} 46... Rc5 {[%clk
0:01:04.5]} 47. Rf4 {[%clk 0:00:36.1]} 47... Qe5 {[%clk 0:00:57.5]} 48. Re1
{[%clk 0:00:31.6]} 48... Qh5 {[%clk 0:00:47.5]} 49. Rf8+ {[%clk 0:00:27.1]}
49... Kh7 {[%clk 0:00:46.3]} 50. Qd3+ {[%clk 0:00:26.4]} 50... g6 {[%clk
0:00:45.6]} 51. Re7# {[%clk 0:00:24.5]} 1-0

[Event "Live Chess"]
[Site "Chess.com"]
[Date "2023.05.20"]
[Round "-"]
[White "Stanbad1"]
[Black "diana21strabt"]
[Result "1-0"]
[WhiteElo "2393"]
[BlackElo "1697"]
[TimeControl "300"]
[EndTime "14:35:07 PDT"]
[Termination "Stanbad1 won by resignation"]

1. d4 {[%clk 0:04:57.2]} 1... Nf6 {[%clk 0:04:57.4]} 2. Nc3 {[%clk 0:04:54.4]}
2... g6 {[%clk 0:04:56.3]} 3. e4 {[%clk 0:04:50.7]} 3... d6 {[%clk 0:04:55.1]}
4. Be3 {[%clk 0:04:49.2]} 4... Nbd7 {[%clk 0:04:53.4]} 5. f3 {[%clk 0:04:48.5]}
5... e5 {[%clk 0:04:52]} 6. dxe5 {[%clk 0:04:47.3]} 6... dxe5 {[%clk 0:04:49]}
7. Qd2 {[%clk 0:04:46.9]} 7... Bg7 {[%clk 0:04:45]} 8. O-O-O {[%clk 0:04:44.2]}
8... c6 {[%clk 0:04:41.5]} 9. Bc4 {[%clk 0:04:42.2]} 9... Qc7 {[%clk 0:04:39.9]}
10. Nge2 {[%clk 0:04:40.4]} 10... b5 {[%clk 0:04:37.1]} 11. Bxb5 {[%clk
0:04:28.6]} 11... cxb5 {[%clk 0:04:35.3]} 12. Nxb5 {[%clk 0:04:28.5]} 12... Qc6
{[%clk 0:04:27.4]} 13. Nd6+ {[%clk 0:04:26.1]} 13... Ke7 {[%clk 0:04:25.9]} 14.
Qb4 {[%clk 0:04:23.1]} 14... Ke6 {[%clk 0:04:03.1]} 15. Qb3+ {[%clk 0:04:20]}
15... Ke7 {[%clk 0:04:00]} 16. Qxf7+ {[%clk 0:04:19.5]} 16... Kd8 {[%clk
0:03:58.1]} 17. Qxg7 {[%clk 0:04:18.9]} 17... Rg8 {[%clk 0:03:48.7]} 18. Qf7
{[%clk 0:04:05.7]} 18... Ba6 {[%clk 0:03:43.6]} 19. Nc3 {[%clk 0:04:01]} 19...
Rf8 {[%clk 0:03:37.3]} 20. Qe6 {[%clk 0:03:50]} 20... Rb8 {[%clk 0:03:19.5]} 21.
Bg5 {[%clk 0:03:42.8]} 21... Qb6 {[%clk 0:03:14.8]} 22. Bxf6+ {[%clk 0:03:40.2]}
22... Rxf6 {[%clk 0:03:02.3]} 23. Qe8+ {[%clk 0:03:37.5]} 23... Kc7 {[%clk
0:03:00.6]} 24. Nd5+ {[%clk 0:03:36.7]} 24... Kc6 {[%clk 0:02:54.5]} 25. Qxd7+
{[%clk 0:03:32.5]} 25... Kxd7 {[%clk 0:02:51.7]} 26. Nxb6+ {[%clk 0:03:31.9]}
26... axb6 {[%clk 0:02:36.9]} 27. Nf7+ {[%clk 0:03:19.8]} 27... Ke6 {[%clk
0:02:33.6]} 28. Ng5+ {[%clk 0:03:18]} 28... Ke7 {[%clk 0:02:31.3]} 29. Nxh7
{[%clk 0:03:17.9]} 29... Rc6 {[%clk 0:02:29]} 30. Ng5 {[%clk 0:03:15.8]} 30...
Rbc8 {[%clk 0:02:27.2]} 31. c3 {[%clk 0:03:13.7]} 31... b5 {[%clk 0:02:26.3]}
32. Kb1 {[%clk 0:03:12.2]} 32... b4 {[%clk 0:02:24.3]} 33. cxb4 {[%clk
0:03:08.2]} 33... Bc4 {[%clk 0:02:18]} 34. b3 {[%clk 0:03:06.5]} 34... Be2
{[%clk 0:02:16]} 35. Rc1 {[%clk 0:03:04.5]} 35... Bd3+ {[%clk 0:02:13.4]} 36.
Kb2 {[%clk 0:03:01.9]} 36... Rxc1 {[%clk 0:02:01.1]} 37. Rxc1 {[%clk 0:02:59.1]}
37... Rxc1 {[%clk 0:01:59.8]} 38. Kxc1 {[%clk 0:02:57.3]} 38... Bf1 {[%clk
0:01:58.7]} 39. g3 {[%clk 0:02:55.4]} 39... Kf6 {[%clk 0:01:57.3]} 40. h4 {[%clk
0:02:54.3]} 40... Bd3 {[%clk 0:01:48.9]} 41. a4 {[%clk 0:02:52.6]} 41... Be2
{[%clk 0:01:46.5]} 42. b5 {[%clk 0:02:51.3]} 1-0

[Event "Live Chess"]
[Site "Chess.com"]
[Date "2023.05.20"]
[Round "-"]
[White "toxic_rabbit"]
[Black "toog"]
[Result "0-1"]
[WhiteElo "2000"]
[BlackElo "2615"]
[TimeControl "300"]
[EndTime "14:35:09 PDT"]
[Termination "toog won by resignation"]

1. e4 {[%clk 0:04:58.9]} 1... c5 {[%clk 0:04:55.7]} 2. c3 {[%clk 0:04:58.2]}
2... Nf6 {[%clk 0:04:51.6]} 3. e5 {[%clk 0:04:57.4]} 3... Nd5 {[%clk 0:04:50.7]}
4. d4 {[%clk 0:04:56]} 4... e6 {[%clk 0:04:48.8]} 5. Nf3 {[%clk 0:04:52.8]} 5...
cxd4 {[%clk 0:04:47.8]} 6. cxd4 {[%clk 0:04:51]} 6... d6 {[%clk 0:04:47.7]} 7.
exd6 {[%clk 0:04:47.9]} 7... Bxd6 {[%clk 0:04:46.4]} 8. Nc3 {[%clk 0:04:47.8]}
8... O-O {[%clk 0:04:42]} 9. Be2 {[%clk 0:04:46.8]} 9... Bd7 {[%clk 0:04:37.8]}
10. O-O {[%clk 0:04:45]} 10... Bc6 {[%clk 0:04:36.5]} 11. Bg5 {[%clk 0:04:37.6]}
11... Qa5 {[%clk 0:04:23.1]} 12. Nxd5 {[%clk 0:04:33.6]} 12... Qxd5 {[%clk
0:04:18.8]} 13. Bh4 {[%clk 0:04:31.9]} 13... Nd7 {[%clk 0:04:16.7]} 14. Bg3
{[%clk 0:04:30.6]} 14... Nb6 {[%clk 0:04:14.6]} 15. Nh4 {[%clk 0:04:27.8]} 15...
Bxg3 {[%clk 0:04:06.9]} 16. hxg3 {[%clk 0:04:19.4]} 16... Rad8 {[%clk
0:04:05.4]} 17. Nf3 {[%clk 0:04:11.2]} 17... Nc4 {[%clk 0:03:57.5]} 18. Bxc4
{[%clk 0:04:03.4]} 18... Qxc4 {[%clk 0:03:57.4]} 19. Ne5 {[%clk 0:03:56.8]}
19... Qxd4 {[%clk 0:03:56.4]} 20. Nxc6 {[%clk 0:03:54.4]} 20... bxc6 {[%clk
0:03:54.1]} 21. Qc2 {[%clk 0:03:51.6]} 21... Qb6 {[%clk 0:03:51.1]} 22. Rac1
{[%clk 0:03:49.2]} 22... Rd6 {[%clk 0:03:47]} 23. Rfd1 {[%clk 0:03:46.6]} 23...
Rfd8 {[%clk 0:03:44.4]} 24. Rxd6 {[%clk 0:03:40.4]} 24... Rxd6 {[%clk
0:03:44.3]} 25. b3 {[%clk 0:03:39.6]} 25... Qd8 {[%clk 0:03:41.9]} 26. Kh2
{[%clk 0:03:35.8]} 26... g6 {[%clk 0:03:37.8]} 27. Qe4 {[%clk 0:03:33.6]} 27...
Qd7 {[%clk 0:03:34.2]} 28. Qe5 {[%clk 0:03:27.2]} 28... Rd5 {[%clk 0:03:29.5]}
29. Qc3 {[%clk 0:03:23.3]} 29... c5 {[%clk 0:03:24.3]} 30. b4 {[%clk 0:03:16.8]}
30... cxb4 {[%clk 0:03:22.1]} 31. Qxb4 {[%clk 0:03:16.7]} 31... a5 {[%clk
0:03:19.5]} 32. Qb8+ {[%clk 0:03:11.9]} 32... Kg7 {[%clk 0:03:17.7]} 33. Qb2+
{[%clk 0:03:10.4]} 33... e5 {[%clk 0:03:13.7]} 34. Re1 {[%clk 0:03:06.2]} 34...
Qd6 {[%clk 0:03:07]} 35. Qe2 {[%clk 0:02:58.5]} 35... Rd2 {[%clk 0:03:03]} 36.
Qxe5+ {[%clk 0:02:51.9]} 36... Qxe5 {[%clk 0:02:58]} 37. Rxe5 {[%clk 0:02:51.8]}
37... Rxa2 {[%clk 0:02:56.8]} 38. f3 {[%clk 0:02:51]} 38... a4 {[%clk
0:02:53.1]} 39. Ra5 {[%clk 0:02:49.7]} 39... a3 {[%clk 0:02:52.2]} 40. Kh3
{[%clk 0:02:48.9]} 40... Ra1 {[%clk 0:02:51.1]} 41. Kh2 {[%clk 0:02:47.2]} 41...
Kf6 {[%clk 0:02:47.4]} 42. g4 {[%clk 0:02:45.8]} 42... Ke6 {[%clk 0:02:46.5]}
43. Kg3 {[%clk 0:02:44.6]} 43... Kd6 {[%clk 0:02:40.7]} 44. Kf2 {[%clk
0:02:42.6]} 44... Kc6 {[%clk 0:02:37.1]} 45. Ke3 {[%clk 0:02:41.4]} 45... Kb6
{[%clk 0:02:33.3]} 46. Ra8 {[%clk 0:02:40.8]} 46... Kb5 {[%clk 0:02:32.4]} 47.
Kd3 {[%clk 0:02:39.9]} 47... Kb4 {[%clk 0:02:28.6]} 48. Rb8+ {[%clk 0:02:36.8]}
48... Ka4 {[%clk 0:02:24.5]} 49. Ra8+ {[%clk 0:02:35.5]} 49... Kb3 {[%clk
0:02:23.4]} 50. Rb8+ {[%clk 0:02:33.6]} 50... Ka2 {[%clk 0:02:20.9]} 51. Kc2
{[%clk 0:02:30]} 51... Rg1 {[%clk 0:02:17.9]} 52. Kd3 {[%clk 0:02:21.2]} 52...
Rxg2 {[%clk 0:02:16.7]} 53. f4 {[%clk 0:02:19.6]} 53... Rb2 {[%clk 0:02:11.9]}
54. Ra8 {[%clk 0:02:18.2]} 54... Rb3+ {[%clk 0:02:10.8]} 55. Kc2 {[%clk
0:02:16.9]} 55... Rf3 {[%clk 0:02:09.3]} 56. f5 {[%clk 0:02:15.1]} 56... gxf5
{[%clk 0:02:06.4]} 57. gxf5 {[%clk 0:02:13]} 57... Rxf5 {[%clk 0:02:06.3]} 58.
Rc8 {[%clk 0:02:09.4]} 58... h5 {[%clk 0:02:03.8]} 59. Rc3 {[%clk 0:02:06]}
59... h4 {[%clk 0:01:59.7]} 0-1

[Event "Live Chess"]
[Site "Chess.com"]
[Date "2023.05.20"]
[Round "-"]
[White "Daniel_Gliddon_FA"]
[Black "hturner40"]
[Result "0-1"]
[WhiteElo "1217"]
[BlackElo "1815"]
[TimeControl "300"]
[EndTime "14:35:09 PDT"]
[Termination "hturner40 won by resignation"]

1. e4 {[%clk 0:04:56.1]} 1... Nc6 {[%clk 0:04:57.8]} 2. d4 {[%clk 0:04:54.1]}
2... e5 {[%clk 0:04:56.7]} 3. d5 {[%clk 0:04:52.6]} 3... Nce7 {[%clk 0:04:55.7]}
4. Nf3 {[%clk 0:04:48.2]} 4... Ng6 {[%clk 0:04:54.9]} 5. Nc3 {[%clk 0:04:41.4]}
5... Bc5 {[%clk 0:04:52.2]} 6. Bc4 {[%clk 0:04:36.2]} 6... Nf6 {[%clk
0:04:48.6]} 7. Qe2 {[%clk 0:04:33.5]} 7... a6 {[%clk 0:04:39.1]} 8. Be3 {[%clk
0:04:31.9]} 8... Bb4 {[%clk 0:04:37.9]} 9. Bd2 {[%clk 0:04:28.9]} 9... d6 {[%clk
0:04:29.5]} 10. a3 {[%clk 0:04:21.2]} 10... Ba5 {[%clk 0:04:23.1]} 11. O-O
{[%clk 0:04:11.7]} 11... O-O {[%clk 0:04:18.8]} 12. Rad1 {[%clk 0:04:01.7]}
12... Nh5 {[%clk 0:04:11.8]} 13. Bb3 {[%clk 0:03:37.2]} 13... Ngf4 {[%clk
0:04:04]} 14. Bxf4 {[%clk 0:03:32.4]} 14... Nxf4 {[%clk 0:04:01.8]} 15. Qe3
{[%clk 0:03:28.9]} 15... Bb6 {[%clk 0:03:58.5]} 16. Qe1 {[%clk 0:03:23.3]} 16...
Bg4 {[%clk 0:03:52.1]} 17. Na4 {[%clk 0:03:00.5]} 17... Bxf3 {[%clk 0:03:44]}
18. gxf3 {[%clk 0:02:59.1]} 18... Qg5+ {[%clk 0:03:41.4]} 0-1

[Event "Live Chess"]
[Site "Chess.com"]
[Date "2023.05.20"]
[Round "-"]
[White "BostonStrangler"]
[Black "CheckThis4"]
[Result "0-1"]
[WhiteElo "2049"]
[BlackElo "2548"]
[TimeControl "300"]
[EndTime "14:35:10 PDT"]
[Termination "CheckThis4 won by resignation"]

1. Nf3 {[%clk 0:04:54.8]} 1... e6 {[%clk 0:04:50.5]} 2. c4 {[%clk 0:04:52.2]}
2... d5 {[%clk 0:04:45.8]} 3. g3 {[%clk 0:04:51.3]} 3... c5 {[%clk 0:04:43.2]}
4. cxd5 {[%clk 0:04:48.7]} 4... exd5 {[%clk 0:04:41.5]} 5. d4 {[%clk 0:04:47.9]}
5... Nc6 {[%clk 0:04:39.3]} 6. Bg2 {[%clk 0:04:46.8]} 6... Nf6 {[%clk
0:04:38.1]} 7. O-O {[%clk 0:04:45.3]} 7... cxd4 {[%clk 0:04:35.2]} 8. Nxd4
{[%clk 0:04:43.7]} 8... Bc5 {[%clk 0:04:34.9]} 9. Nb3 {[%clk 0:04:39.4]} 9...
Bb6 {[%clk 0:04:33.1]} 10. Nc3 {[%clk 0:04:38]} 10... d4 {[%clk 0:04:32.2]} 11.
Na4 {[%clk 0:04:36.2]} 11... O-O {[%clk 0:04:26.5]} 12. Nxb6 {[%clk 0:04:34.6]}
12... axb6 {[%clk 0:04:19.7]} 13. Bg5 {[%clk 0:04:32.3]} 13... h6 {[%clk
0:04:15.1]} 14. Bf4 {[%clk 0:04:30.1]} 14... Be6 {[%clk 0:04:13]} 15. Qd3 {[%clk
0:04:20.6]} 15... Nd5 {[%clk 0:03:58.5]} 16. Bd2 {[%clk 0:04:17.7]} 16... Qf6
{[%clk 0:03:28.9]} 17. f4 {[%clk 0:03:59.4]} 17... Ndb4 {[%clk 0:03:04.8]} 18.
Bxb4 {[%clk 0:03:53]} 18... Nxb4 {[%clk 0:03:04.7]} 19. Qxd4 {[%clk 0:03:51.5]}
19... Nxa2 {[%clk 0:02:50.6]} 20. Qxf6 {[%clk 0:03:46.1]} 20... gxf6 {[%clk
0:02:50.5]} 21. Nd4 {[%clk 0:03:44.5]} 21... Rfd8 {[%clk 0:02:42]} 22. Nxe6
{[%clk 0:03:40.5]} 22... fxe6 {[%clk 0:02:41.9]} 23. Bxb7 {[%clk 0:03:39.4]}
23... Ra7 {[%clk 0:02:41]} 24. Bd5 {[%clk 0:03:35.6]} 24... Rxd5 {[%clk
0:02:39.6]} 0-1

[Event "Live Chess"]
[Site "Chess.com"]
[Date "2023.05.20"]
[Round "-"]
[White "Mikhail_Golubev"]
[Black "Brooms1989"]
[Result "1-0"]
[WhiteElo "2518"]
[BlackElo "1055"]
[TimeControl "300"]
[EndTime "14:35:16 PDT"]
[Termination "Mikhail_Golubev won on time"]

1. e4 {[%clk 0:04:58]} 1... e5 {[%clk 0:04:56]} 2. Nc3 {[%clk 0:04:56]} 2... Nf6
{[%clk 0:04:52.1]} 3. Bc4 {[%clk 0:04:54.8]} 3... Bc5 {[%clk 0:04:46.4]} 4. d3
{[%clk 0:04:49.1]} 4... O-O {[%clk 0:04:41.9]} 5. Nf3 {[%clk 0:04:41.3]} 5... h6
{[%clk 0:04:36]} 6. Nxe5 {[%clk 0:04:34.9]} 6... d6 {[%clk 0:04:30.2]} 7. Nf3
{[%clk 0:04:31.1]} 7... Nc6 {[%clk 0:04:25.9]} 8. h3 {[%clk 0:04:24.1]} 8... a6
{[%clk 0:04:18.5]} 9. O-O {[%clk 0:04:18.7]} 9... b5 {[%clk 0:04:16.9]} 10. Bb3
{[%clk 0:04:15.3]} 10... Be6 {[%clk 0:04:01.2]} 11. d4 {[%clk 0:04:10.4]} 11...
Bxb3 {[%clk 0:03:42.1]} 12. axb3 {[%clk 0:04:05.1]} 12... Bb6 {[%clk 0:03:36.5]}
13. Qd3 {[%clk 0:03:40.3]} 13... Re8 {[%clk 0:03:27.3]} 14. Re1 {[%clk
0:03:06.7]} 14... Nb4 {[%clk 0:03:10.3]} 15. Qd1 {[%clk 0:02:41.6]} 15... d5
{[%clk 0:02:40.5]} 16. e5 {[%clk 0:02:35.9]} 16... Nh7 {[%clk 0:02:25.1]} 17.
Be3 {[%clk 0:02:24.9]} 17... f6 {[%clk 0:01:59.7]} 18. Qd2 {[%clk 0:02:21.6]}
18... fxe5 {[%clk 0:01:50.1]} 19. Nxe5 {[%clk 0:01:44.4]} 19... Qd6 {[%clk
0:01:08]} 20. Rad1 {[%clk 0:01:36.5]} 20... Nf6 {[%clk 0:00:59.9]} 21. Bf4
{[%clk 0:01:32.8]} 21... Qd8 {[%clk 0:00:49.4]} 22. Kh1 {[%clk 0:01:19.4]} 22...
Ra7 {[%clk 0:00:35.9]} 23. f3 {[%clk 0:01:03.2]} 23... a5 {[%clk 0:00:20.3]} 24.
Nxb5 {[%clk 0:01:01.8]} 24... Rb7 {[%clk 0:00:15.9]} 25. c3 {[%clk 0:00:55.7]}
25... Na6 {[%clk 0:00:12.8]} 26. Qd3 {[%clk 0:00:48.3]} 26... Nb8 {[%clk
0:00:10.3]} 27. c4 {[%clk 0:00:41.9]} 27... dxc4 {[%clk 0:00:07.1]} 28. bxc4
{[%clk 0:00:39.5]} 28... Nbd7 {[%clk 0:00:06.3]} 29. Nc6 {[%clk 0:00:35.6]}
29... Qc8 {[%clk 0:00:04.9]} 30. Ne7+ {[%clk 0:00:32.9]} 30... Kf8 {[%clk
0:00:03.4]} 31. Nxc8 {[%clk 0:00:31.3]} 31... Rxc8 {[%clk 0:00:03.3]} 32. d5
{[%clk 0:00:26.2]} 32... Re8 {[%clk 0:00:02.6]} 33. Rxe8+ {[%clk 0:00:24.2]}
33... Nxe8 {[%clk 0:00:02.5]} 34. Re1 {[%clk 0:00:22.7]} 34... Nd6 {[%clk
0:00:02.4]} 35. Nxd6 {[%clk 0:00:20.8]} 35... cxd6 {[%clk 0:00:01.2]} 36. Bxd6+
{[%clk 0:00:19.6]} 36... Kg8 {[%clk 0:00:00.5]} 37. Qg6 {[%clk 0:00:16.7]} 1-0